bitfinex-derivatives/quotes_BTCF0:USTF0_20260106
["timestamp","ask_amount","ask_price","bid_price","bid_amount"]
[1767739735429,0.09898805,93286.0,93270.0,0.010726]
[1767739736338,0.13194764,93286.0,93270.0,0.010726]
[1767739737239,0.01751623,93286.0,93273.0,0.00951659]
[1767739737434,0.10052142,93290.0,93276.0,0.010725]
[1767739737739,0.19950947,93290.0,93274.0,0.09124]
[1767739737941,0.09084557,93289.0,93274.0,0.09124]
[1767739738231,0.09084557,93289.0,93279.0,0.010725]
[1767739738434,0.02038891,93282.0,93263.0,0.010727]
[1767739738637,0.11123448,93281.0,93264.0,0.101967]
[1767739738835,0.09084557,93280.0,93274.0,0.010725]
[1767739739735,0.02038891,93284.0,93274.0,0.010725]
[1767739739935,0.09084557,93286.0,93274.0,0.010725]
[1767739740140,0.11123448,93282.0,93274.0,0.010725]
[1767739740335,0.09084557,93279.0,93259.0,0.010727]
[1767739740648,0.09084557,93279.0,93260.0,0.11180269]
[1767739740846,0.09084557,93279.0,93261.0,0.02056269]
[1767739741028,0.11123448,93286.0,93270.0,0.010726]
[1767739741339,0.11123448,93286.0,93266.0,0.02056269]
[1767739741537,0.11123448,93286.0,93275.0,0.010725]
[1767739742335,0.09652399,93284.0,93275.0,0.010725]
[1767739743142,0.09652399,93284.0,93277.0,0.010725]
[1767739743332,0.09652399,93287.0,93270.0,0.0912]
[1767739743535,0.12012585,93287.0,93270.0,0.0912]
[1767739743738,0.09652399,93287.0,93270.0,0.115077]
[1767739744233,0.09652399,93287.0,93278.0,0.010725]
[1767739744446,0.01746951,93290.0,93276.0,0.023877]
[1767739744737,0.09652399,93296.0,93280.0,0.023877]
[1767739744933,0.11404949,93296.0,93280.0,0.023877]
[1767739745329,5e-07,93296.0,93283.0,0.023877]
[1767739745534,0.09652399,93303.0,93283.0,0.023877]
[1767739745535,0.09652399,93303.0,93296.0,0.010723]
[1767739745745,0.09652399,93303.0,93287.0,0.023877]
[1767739745746,0.09652399,93308.0,93295.0,0.010723]
[1767739746434,0.09652399,93306.0,93291.0,0.101923]
[1767739746638,0.12012585,93306.0,93291.0,0.101923]
[1767739746847,0.09652399,93305.0,93291.0,0.101923]
[1767739747243,0.09652399,93305.0,93293.0,0.010723]
[1767739748142,0.10724599,93305.0,93290.0,0.010724]
[1767739748349,0.10724599,93305.0,93292.0,0.101923]
[1767739748650,0.09652399,93305.0,93292.0,0.101923]
[1767739748954,0.12012585,93303.0,93292.0,0.0912]
[1767739749851,0.09652399,93301.0,93292.0,0.0912]
[1767739750454,0.10724599,93307.0,93292.0,0.0912]
[1767739750661,0.10724599,93307.0,93293.0,0.010723]
[1767739751153,0.12429467,93307.0,93293.0,0.010723]
[1767739752038,0.01704868,93307.0,93297.0,0.010723]
[1767739752242,0.11124242,93310.0,93297.0,0.010723]
[1767739752444,0.010721,93310.0,93297.0,0.010723]
[1767739752639,0.010721,93311.0,93297.0,0.010723]
[1767739753551,0.01717148,93311.0,93300.0,0.10052142]
[1767739753750,0.12012585,93321.0,93309.0,0.010721]
[1767739753960,0.09652399,93317.0,93293.0,0.09110028]
[1767739754142,0.09652399,93313.0,93305.0,0.010722]
[1767739754340,0.09652399,93313.0,93304.0,0.010722]
[1767739755255,0.09652399,93318.0,93304.0,0.010722]
[1767739755446,0.01072,93319.0,93304.0,0.010722]
[1767739755447,0.12012585,93316.0,93304.0,0.010722]
[1767739755649,0.12012585,93316.0,93301.0,0.010722]
[1767739755844,0.09652399,93316.0,93301.0,0.010722]
[1767739756354,0.09652399,93316.0,93297.0,0.00583157]
[1767739756555,0.12012585,93314.0,93294.0,0.0912]
[1767739756755,0.09652399,93312.0,93294.0,0.09670619]
[1767739757054,0.09652399,93310.0,93294.0,0.0912]
[1767739757261,0.09652399,93310.0,93294.0,0.09670619]
[1767739758158,0.02360186,93319.0,93300.0,0.10052142]
[1767739758456,0.02360186,93319.0,93306.0,0.010722]
[1767739758658,0.02360186,93319.0,93309.0,0.010721]
[1767739759254,0.02360186,93319.0,93312.0,0.010721]
[1767739759558,0.02360186,93319.0,93298.0,0.00754662]
[1767739759853,0.10052142,93320.0,93301.0,0.00754662]
[1767739760054,0.02360186,93323.0,93301.0,0.00754662]
[1767739760253,0.12012585,93322.0,93301.0,0.00754662]
[1767739760457,0.02360186,93321.0,93301.0,0.00754662]
[1767739760661,0.02360186,93321.0,93312.0,0.010721]
[1767739760961,8.6e-07,93320.0,93314.0,0.010721]
[1767739761161,0.09652399,93321.0,93311.0,0.010721]
[1767739761860,0.09652399,93321.0,93304.0,0.0912]
[1767739762251,0.09652399,93319.0,93294.0,0.023877]
[1767739762565,0.09652399,93319.0,93306.0,0.010722]
[1767739762961,0.09652399,93317.0,93306.0,0.010722]
[1767739763165,0.12012585,93315.0,93306.0,0.010722]
[1767739763468,0.09652399,93315.0,93306.0,0.010722]
[1767739763656,0.02360186,93343.0,93322.0,0.01072]
[1767739763862,0.010717,93345.0,93319.0,0.0912]
[1767739764066,0.010717,93348.0,93330.0,0.010719]
[1767739764259,0.10052142,93340.0,93330.0,0.010719]
[1767739764459,0.11816696,93340.0,93330.0,0.010719]
[1767739764658,0.11816696,93340.0,93319.0,0.0912]
[1767739764659,0.11816696,93340.0,93327.0,0.010719]
[1767739765365,0.01764554,93340.0,93319.0,0.0912]
[1767739765565,0.19704541,93340.0,93326.0,0.010719]
[1767739765759,0.12012585,93339.0,93326.0,0.010719]
[1767739766259,0.02360186,93337.0,93326.0,0.010719]
[1767739766464,0.02360186,93335.0,93326.0,0.010719]
[1767739766668,0.02360186,93339.0,93326.0,0.010719]
[1767739767271,0.09652399,93371.0,93324.0,0.11497728]
[1767739767465,0.02360186,93378.0,93322.0,0.09116]
[1767739767466,0.09652399,93378.0,93350.0,0.10971386]
[1767739767663,0.02024462,93359.0,93343.0,0.09110028]
[1767739767865,0.09652399,93358.0,93342.0,0.010718]
[1767739768063,0.09652399,93351.0,93327.0,0.010719]
[1767739768262,0.02024462,93359.0,93315.0,0.01961358]
[1767739768263,0.09652399,93339.0,93315.0,0.01961358]
[1767739768471,0.10724199,93339.0,93318.0,0.01072]
[1767739768667,0.09652399,93335.0,93311.0,0.023877]
[1767739768870,0.09652399,93333.0,93316.0,0.010721]
[1767739769071,0.09652399,93333.0,93312.0,0.115037]
[1767739769369,0.09652399,93358.0,93336.0,0.023877]
[1767739769565,0.09652399,93358.0,93345.0,0.010717]
[1767739769963,0.12012585,93354.0,93330.0,0.12439842]
[1767739770165,0.09652399,93347.0,93336.0,0.010718]
[1767739770367,0.09652399,93345.0,93322.0,0.01072]
[1767739770567,0.12012585,93345.0,93323.0,0.09116]
[1767739770762,0.12012585,93345.0,93334.0,0.010718]
[1767739770959,0.12012585,93345.0,93335.0,0.09116]
[1767739771161,0.02360186,93344.0,93335.0,0.08796762]
[1767739771363,0.09652399,93343.0,93334.0,0.101878]
[1767739771567,0.09960136,93353.0,93334.0,0.09116]
[1767739771772,0.09960136,93353.0,93344.0,0.010717]
[1767739772761,0.09960136,93353.0,93341.0,0.010718]
[1767739772964,0.09960136,93353.0,93343.0,0.010717]
[1767739773774,0.05542382,93359.0,93337.0,0.010718]
[1767739773972,0.15502518,93359.0,93344.0,0.010717]
[1767739774170,0.09960136,93358.0,93346.0,0.010717]
[1767739774471,0.13478056,93358.0,93346.0,0.010717]
[1767739774672,0.09950136,93357.0,93346.0,0.010717]
[1767739775268,0.09950136,93357.0,93348.0,0.010717]
[1767739775774,0.0351792,93357.0,93330.0,0.10052142]
[1767739775976,0.02024462,93359.0,93345.0,0.010717]
[1767739776271,0.02024462,93359.0,93347.0,0.010717]
[1767739776862,0.13478056,93357.0,93347.0,0.010717]
[1767739777064,0.09960136,93355.0,93345.0,0.010717]
[1767739777270,0.09960136,93355.0,93345.0,0.101877]
[1767739777477,0.09960136,93353.0,93342.0,0.09116]
[1767739777670,0.09960136,93352.0,93342.0,0.09116]
[1767739777866,0.09960136,93352.0,93331.0,0.03618806]
[1767739778072,0.13478056,93352.0,93340.0,0.010718]
[1767739778370,0.13478056,93349.0,93338.0,0.010718]
[1767739778565,0.09960136,93347.0,93325.0,0.50984]
[1767739778779,0.09960136,93347.0,93327.0,0.010719]
[1767739779580,0.09960136,93347.0,93336.0,0.010718]
[1767739779876,0.09960136,93347.0,93337.0,0.09116]
[1767739780081,0.09960136,93347.0,93338.0,0.101878]
[1767739780275,0.0351792,93346.0,93338.0,0.010718]
[1767739780474,0.0351792,93346.0,93340.0,0.010718]
[1767739780676,0.0351792,93345.0,93335.0,0.09116]
[1767739781284,0.0351792,93351.0,93340.0,0.010718]
[1767739781578,0.0351792,93350.0,93340.0,0.010718]
[1767739781781,0.0351792,93350.0,93337.0,0.010718]
[1767739781982,0.0351792,93350.0,93335.0,0.09116]
[1767739782283,0.0351792,93350.0,93341.0,0.010718]
[1767739782584,0.0351792,93355.0,93343.0,0.010717]
[1767739782777,0.0351792,93355.0,93342.0,0.010718]
[1767739783269,0.0351792,93352.0,93342.0,0.010718]
[1767739783470,0.0351792,93350.0,93335.0,0.09116]
[1767739783673,0.0351792,93350.0,93343.0,0.010717]
[1767739783973,0.010716,93358.0,93337.0,0.13603282]
[1767739783974,0.09960136,93358.0,93337.0,0.13603282]
[1767739784178,0.02024462,93359.0,93347.0,0.010717]
[1767739784380,0.02024462,93359.0,93343.0,0.13603282]
[1767739784585,0.09960136,93365.0,93359.0,0.010716]
[1767739785586,0.1174698,93365.0,93359.0,0.010716]
[1767739785879,0.1174698,93365.0,93348.0,0.09116]
[1767739786088,0.1173698,93365.0,93348.0,0.09116]
[1767739786786,0.1173698,93365.0,93356.0,0.010716]
[1767739787588,0.03326316,93364.0,93348.0,0.09116]
[1767739788072,0.01786844,93365.0,93348.0,0.09116]
[1767739788073,0.03326316,93362.0,93348.0,0.09116]
[1767739788274,0.03326316,93362.0,93355.0,0.010716]
[1767739788876,0.03324784,93361.0,93355.0,0.010716]
[1767739790186,0.01786844,93365.0,93357.0,0.010716]
[1767739790387,0.010714,93374.0,93359.0,0.010716]
[1767739790886,0.02879764,93374.0,93361.0,0.010715]
[1767739791088,0.010714,93374.0,93361.0,0.010715]
[1767739791674,0.22261559,93376.0,93361.0,0.010715]
[1767739792081,0.13145559,93376.0,93355.0,0.13603282]
[1767739792287,0.03146658,93372.0,93353.0,0.010716]
[1767739792589,0.01750669,93376.0,93355.0,0.010716]
[1767739792779,0.03111727,93377.0,93355.0,0.010716]
[1767739793181,0.0177597,93377.0,93368.0,0.010715]
[1767739793376,0.14143163,93383.0,93365.0,0.09112]
[1767739793689,0.03103218,93381.0,93365.0,0.09112]
[1767739793878,0.03103218,93379.0,93365.0,0.09112]
[1767739794279,0.03102171,93385.0,93365.0,0.09112]
[1767739794481,0.03102171,93385.0,93374.0,0.010714]
[1767739794676,0.03102171,93385.0,93376.0,0.010714]
[1767739795090,0.04898586,93385.0,93373.0,0.010714]
[1767739795291,0.09960136,93382.0,93365.0,0.09112]
[1767739795582,0.09960136,93371.0,93346.0,0.05790093]
[1767739795786,0.05739047,93368.0,93355.0,0.010716]
[1767739795985,0.010714,93371.0,93355.0,0.010716]
[1767739796281,0.00542338,93365.0,93351.0,0.09112]
[1767739796481,0.501834,93378.0,93346.0,0.010717]
[1767739796482,0.00542338,93361.0,93346.0,0.010717]
[1767739796789,0.00542338,93360.0,93344.0,0.09112]
[1767739797084,0.00542338,93359.0,93343.0,0.09112]
[1767739797387,0.010716,93360.0,93343.0,0.19096476]
[1767739797789,0.010716,93358.0,93343.0,0.19096476]
[1767739797979,0.010716,93361.0,93344.0,0.010717]
[1767739798179,0.00431307,93360.0,93344.0,0.010717]
[1767739798687,0.010716,93361.0,93344.0,0.10885641]
[1767739799385,0.00431307,93360.0,93344.0,0.010717]
[1767739799588,0.0532731,93362.0,93341.0,0.010718]
[1767739799589,0.00180315,93358.0,93341.0,0.010718]
[1767739799980,0.00180315,93356.0,93340.0,0.09112]
[1767739800287,0.00180315,93356.0,93338.0,0.101838]
[1767739800590,0.010716,93355.0,93338.0,0.010718]
[1767739800777,0.010716,93353.0,93338.0,0.010718]
[1767739801174,0.00180315,93356.0,93337.0,0.18925941]
[1767739801376,0.010716,93355.0,93337.0,0.18925941]
[1767739801877,0.00040023,93352.0,93335.0,0.09112]
[1767739802081,0.00040023,93352.0,93331.0,0.09727381]
[1767739802082,0.00040023,93348.0,93333.0,0.010719]
[1767739802386,0.00040023,93346.0,93332.0,0.010719]
[1767739802592,0.010717,93346.0,93324.0,0.09727381]
[1767739803090,0.05214441,93347.0,93329.0,0.010719]
[1767739803387,0.06286141,93347.0,93329.0,0.010719]
[1767739804691,0.06290399,93346.0,93322.0,0.09112]
[1767739805091,0.06290399,93346.0,93319.0,0.10799381]
[1767739805295,0.05218699,93346.0,93320.0,0.09112]
[1767739805593,0.05218699,93346.0,93320.0,0.01072]
[1767739805796,0.010718,93339.0,93323.0,0.01072]
[1767739805994,0.06257612,93343.0,93319.0,0.18839381]
[1767739806186,0.05185812,93343.0,93323.0,0.01072]
[1767739806387,0.10031493,93350.0,93282.0,0.010724]
[1767739806388,0.06257612,93337.0,93313.0,0.18839381]
[1767739806686,0.06257612,93337.0,93313.0,0.09727381]
[1767739807092,0.05185812,93337.0,93317.0,0.01072]
[1767739807487,0.062157,93333.0,93312.0,0.010721]
[1767739807795,0.062157,93333.0,93314.0,0.010721]
[1767739807994,0.010719,93331.0,93314.0,0.010721]
[1767739808191,0.051438,93333.0,93316.0,0.010721]
[1767739808591,0.051438,93333.0,93309.0,0.09727381]
[1767739808786,0.010718,93337.0,93313.0,0.09727381]
[1767739809097,0.010718,93337.0,93321.0,0.01072]
[1767739809295,0.010718,93337.0,93313.0,0.09727381]
[1767739809497,0.010718,93337.0,93313.0,0.1382813]
[1767739809698,0.010718,93337.0,93318.0,0.09727381]
[1767739811294,0.010718,93337.0,93314.0,0.04100749]
[1767739812098,0.010718,93337.0,93314.0,0.04080749]
[1767739812398,0.010718,93337.0,93320.0,0.01072]
[1767739812599,0.010718,93337.0,93314.0,0.04080749]
[1767739813403,0.00214297,93329.0,93318.0,0.01072]
[1767739813594,0.00214297,93329.0,93319.0,0.09727381]
[1767739813806,0.010718,93335.0,93319.0,0.09727381]
[1767739814097,0.010718,93341.0,93327.0,0.1382813]
[1767739814292,0.010718,93341.0,93330.0,0.09727381]
[1767739814493,0.09112,93342.0,93329.0,0.04100749]
[1767739815094,0.09112,93342.0,93331.0,0.010719]
[1767739815491,0.09116,93350.0,93333.0,0.010719]
[1767739815689,0.09116,93350.0,93330.0,0.04100749]
[1767739815690,0.101877,93350.0,93330.0,0.05172649]
[1767739816100,0.101877,93350.0,93332.0,0.010719]
[1767739816296,0.101877,93350.0,93333.0,0.04100749]
[1767739816501,0.101877,93350.0,93334.0,0.04100749]
[1767739817505,0.101877,93350.0,93336.0,0.04100749]
[1767739817707,0.09116,93350.0,93336.0,0.04100749]
[1767739818598,0.0951849,93361.0,93336.0,0.04100749]
[1767739818599,0.010716,93356.0,93338.0,0.05172549]
[1767739818798,0.010716,93356.0,93339.0,0.04100749]
[1767739819297,0.09116,93357.0,93345.0,0.04100749]
[1767739819497,0.010715,93364.0,93347.0,0.04100749]
[1767739819699,0.09116,93365.0,93349.0,0.04100749]
[1767739820904,0.010715,93364.0,93349.0,0.03288949]
[1767739821597,0.010715,93364.0,93348.0,0.09727381]
[1767739822510,0.010715,93362.0,93348.0,0.09727381]
[1767739823216,0.101875,93365.0,93348.0,0.09727381]
[1767739823407,0.101875,93365.0,93349.0,0.010717]
[1767739825008,0.101875,93365.0,93349.0,0.05172449]
[1767739825904,0.101875,93365.0,93350.0,0.04100749]
[1767739826407,0.010715,93369.0,93353.0,0.010716]
[1767739826600,0.02212044,93369.0,93353.0,0.010716]
[1767739827607,0.02212044,93369.0,93347.0,0.04100749]
[1767739827608,0.01132006,93366.0,93349.0,0.010717]
[1767739827803,0.01132006,93364.0,93349.0,0.101877]
[1767739828002,0.01132006,93364.0,93349.0,0.010717]
[1767739828510,0.0951849,93365.0,93349.0,0.010717]
[1767739829011,0.10615294,93365.0,93349.0,0.010717]
[1767739829510,0.10615294,93365.0,93351.0,0.010717]
[1767739829910,0.01051605,93363.0,93351.0,0.010717]
[1767739830607,0.01051605,93363.0,93353.0,0.010716]
[1767739830805,0.01051605,93363.0,93345.0,0.09112]
[1767739830999,0.0951849,93364.0,93345.0,0.13212749]
[1767739831203,0.0951849,93364.0,93352.0,0.010716]
[1767739831403,0.0951849,93364.0,93346.0,0.010717]
[1767739831904,0.010715,93366.0,93353.0,0.010716]
[1767739832104,0.010715,93368.0,93353.0,0.04830294]
[1767739832304,0.00961731,93363.0,93353.0,0.010716]
[1767739832513,0.00927095,93362.0,93344.0,0.09112]
[1767739832709,0.10857994,93362.0,93344.0,0.09112]
[1767739832910,0.10857994,93362.0,93351.0,0.010717]
[1767739833814,0.00852148,93366.0,93353.0,0.010716]
[1767739834609,0.09930899,93369.0,93353.0,0.010716]
[1767739835217,0.010715,93367.0,93353.0,0.010716]
[1767739836318,0.010715,93367.0,93354.0,0.010716]
[1767739837615,0.010715,93368.0,93355.0,0.010716]
[1767739837819,0.01775991,93368.0,93355.0,0.010716]
[1767739838118,0.1063539,93367.0,93355.0,0.010716]
[1767739838612,0.1063539,93367.0,93348.0,0.03758694]
[1767739838613,0.00670712,93366.0,93354.0,0.010716]
[1767739839019,0.10601611,93366.0,93354.0,0.010716]
[1767739839221,0.010715,93367.0,93354.0,0.010716]
[1767739839524,0.01607665,93367.0,93354.0,0.010716]
[1767739839710,0.01607665,93367.0,93352.0,0.010716]
[1767739840107,0.10467064,93363.0,93352.0,0.010716]
[1767739840316,0.09930899,93363.0,93345.0,0.12870694]
[1767739840520,0.010715,93365.0,93346.0,0.03758694]
[1767739841219,0.00502945,93364.0,93345.0,0.12870694]
[1767739841419,0.00502945,93364.0,93346.0,0.03758694]
[1767739841621,0.11002399,93365.0,93346.0,0.03758694]
[1767739842127,0.010715,93365.0,93351.0,0.010717]
[1767739843322,0.10486993,93364.0,93351.0,0.010717]
[1767739844314,0.11100737,93361.0,93344.0,0.09165834]
[1767739844520,0.010715,93362.0,93349.0,0.010717]
[1767739845321,0.010715,93362.0,93347.0,0.010717]
[1767739845629,0.010716,93361.0,93347.0,0.010717]
[1767739845839,0.010716,93361.0,93348.0,0.010717]
[1767739846936,0.11100737,93360.0,93346.0,0.010717]
[1767739847126,0.11100737,93360.0,93347.0,0.010717]
[1767739847331,0.10029137,93360.0,93347.0,0.010717]
[1767739847531,0.11100737,93360.0,93347.0,0.010717]
[1767739848640,0.010716,93360.0,93347.0,0.010717]
[1767739848841,0.11100737,93360.0,93347.0,0.010717]
[1767739849042,0.010716,93359.0,93345.0,0.010717]
[1767739849342,0.010716,93359.0,93330.0,0.10029137]
[1767739849343,0.10600054,93359.0,93339.0,0.03758694]
[1767739849638,0.010716,93357.0,93345.0,0.010717]
[1767739849835,0.010716,93355.0,93343.0,0.03758694]
[1767739850040,0.010716,93357.0,93344.0,0.010717]
[1767739852543,0.010716,93357.0,93345.0,0.04830394]
[1767739852746,0.010716,93357.0,93346.0,0.03758694]
[1767739854931,0.00214228,93359.0,93347.0,0.03758694]
[1767739858545,0.00214228,93359.0,93350.0,0.0351201]
[1767739862435,0.0159748,93360.0,93352.0,0.03480812]
[1767739862635,0.10029137,93370.0,93357.0,0.03480812]
[1767739862843,0.09112,93370.0,93357.0,0.13389365]
[1767739863141,0.09112,93370.0,93351.0,0.010716]
[1767739863142,0.010715,93369.0,93353.0,0.010716]
[1767739863343,0.04566855,93369.0,93353.0,0.010716]
[1767739863742,0.010715,93368.0,93353.0,0.010716]
[1767739863940,0.010715,93366.0,93353.0,0.010716]
[1767739865042,0.010715,93366.0,93351.0,0.010717]
[1767739865537,0.010715,93366.0,93355.0,0.13389365]
[1767739869343,0.10029137,93370.0,93359.0,0.09908553]
[1767739869533,0.10029137,93370.0,93361.0,0.13389365]
[1767739870339,0.10019137,93370.0,93361.0,0.13389365]
[1767739870640,0.10019137,93370.0,93361.0,0.09908553]
[1767739871044,0.010715,93367.0,93357.0,0.03480812]
[1767739871246,0.010715,93367.0,93357.0,0.13389365]
[1767739872046,0.010715,93364.0,93348.0,0.010717]
[1767739872253,0.13524492,93360.0,93348.0,0.010717]
[1767739872449,0.10029137,93360.0,93344.0,0.22501365]
[1767739872649,0.10029137,93360.0,93345.0,0.13389365]
[1767739872851,0.10029137,93360.0,93346.0,0.13389365]
[1767739873050,0.010715,93366.0,93346.0,0.13389365]
[1767739873250,0.010715,93364.0,93349.0,0.010717]
[1767739873645,0.03495355,93365.0,93346.0,0.09908553]
[1767739873851,0.10029137,93356.0,93342.0,0.010718]
[1767739874050,0.010716,93359.0,93343.0,0.010717]
[1767739874347,0.010716,93359.0,93344.0,0.010717]
[1767739874543,0.10029137,93360.0,93348.0,0.09908553]
[1767739874743,0.10029137,93360.0,93345.0,0.010717]
[1767739875659,0.10029137,93360.0,93345.0,0.010517]
[1767739878154,0.10029137,93360.0,93347.0,0.010717]
[1767739879450,0.010716,93359.0,93347.0,0.010717]
[1767739880547,0.010716,93359.0,93347.0,0.04552512]
[1767739880750,0.10029137,93360.0,93349.0,0.010717]
[1767739881055,0.03495355,93359.0,93349.0,0.010717]
[1767739881357,0.03495355,93359.0,93344.0,0.010717]
[1767739881657,0.03495355,93359.0,93341.0,0.09908553]
[1767739881956,0.010716,93359.0,93346.0,0.010717]
[1767739882257,0.10029137,93360.0,93345.0,0.13389365]
[1767739882558,0.10029137,93360.0,93346.0,0.13389365]
[1767739883147,0.10029137,93360.0,93348.0,0.010717]
[1767739883859,0.06480327,93360.0,93353.0,0.03480812]
[1767739884058,0.11100637,93363.0,93353.0,0.03480812]
[1767739884353,0.03495355,93362.0,93350.0,0.010717]
[1767739884558,0.03495355,93362.0,93342.0,0.09112]
[1767739884559,0.010716,93359.0,93342.0,0.09112]
[1767739885061,0.010716,93359.0,93341.0,0.13389365]
[1767739885359,0.04566955,93359.0,93341.0,0.09908553]
[1767739885545,0.010716,93359.0,93343.0,0.13389365]
[1767739886253,0.010716,93359.0,93346.0,0.010717]
[1767739887660,0.010716,93359.0,93348.0,0.010717]
[1767739891962,0.010716,93359.0,93347.0,0.13113629]
[1767739892167,0.010716,93359.0,93350.0,0.13113629]
[1767739892970,0.010716,93359.0,93350.0,0.09736655]
[1767739894260,0.10029137,93360.0,93350.0,0.09736655]
[1767739895160,0.010716,93359.0,93346.0,0.010717]
[1767739895362,0.010716,93359.0,93348.0,0.13113629]
[1767739895753,0.10029137,93360.0,93348.0,0.13113629]
[1767739896352,0.10029137,93360.0,93348.0,0.09736655]
[1767739896756,0.10029137,93360.0,93350.0,0.09736655]
[1767739897150,0.010715,93362.0,93350.0,0.09736655]
[1767739897965,0.010715,93362.0,93351.0,0.03376974]
[1767739898264,0.010715,93362.0,93352.0,0.09736655]
[1767739898566,0.010715,93365.0,93352.0,0.09736655]
[1767739898862,0.010715,93363.0,93352.0,0.09736655]
[1767739899764,0.010715,93363.0,93349.0,0.010717]
[1767739899952,0.010715,93363.0,93350.0,0.03376974]
[1767739900264,0.010715,93363.0,93355.0,0.09736655]
[1767739900558,0.010715,93363.0,93350.0,0.13113629]
[1767739902161,0.10029137,93370.0,93354.0,0.03376974]
[1767739902362,0.10029137,93370.0,93355.0,0.13113629]
[1767739902564,0.010715,93364.0,93355.0,0.13113629]
[1767739902867,0.010715,93366.0,93355.0,0.13113629]
[1767739903368,0.010715,93366.0,93355.0,0.09736655]
[1767739904466,0.010715,93366.0,93355.0,0.13113629]
[1767739904665,0.010715,93366.0,93356.0,0.13113629]
[1767739904866,0.010715,93366.0,93356.0,0.09736655]
[1767739905472,0.04558001,93366.0,93351.0,0.010716]
[1767739905671,0.03486501,93365.0,93351.0,0.010716]
[1767739907673,0.010715,93364.0,93351.0,0.010716]
[1767739909366,0.010715,93364.0,93350.0,0.09736655]
[1767739909574,0.010715,93364.0,93350.0,0.13113629]
[1767739909864,0.010715,93363.0,93350.0,0.13113629]
[1767739910265,0.010715,93363.0,93353.0,0.13113629]
[1767739911070,0.010715,93363.0,93353.0,0.09736655]
[1767739913473,0.03486501,93373.0,93353.0,0.09736655]
[1767739913671,0.010715,93367.0,93353.0,0.09736655]
[1767739915474,0.010715,93366.0,93353.0,0.09736655]
[1767739916068,0.010715,93366.0,93353.0,0.09716655]
[1767739916576,0.010715,93366.0,93354.0,0.03376974]
[1767739916984,0.010715,93366.0,93354.0,0.03356974]
[1767739917779,0.010715,93366.0,93353.0,0.09716655]
[1767739918571,0.09112,93374.0,93353.0,0.09716655]
[1767739918977,0.09112,93374.0,93355.0,0.09457593]
[1767739919379,0.010715,93367.0,93355.0,0.09457593]
[1767739919879,0.04096579,93367.0,93354.0,0.010716]
[1767739920073,0.03025079,93366.0,93351.0,0.010716]
[1767739920682,0.010715,93367.0,93351.0,0.010716]
[1767739920983,0.010715,93367.0,93352.0,0.010716]
[1767739921883,0.03984568,93366.0,93349.0,0.010717]
[1767739922187,0.10992616,93362.0,93347.0,0.010717]
[1767739922673,0.10992616,93362.0,93342.0,0.09112]
[1767739923074,0.10992716,93357.0,93344.0,0.010717]
[1767739923271,0.10992716,93357.0,93341.0,0.010718]
[1767739923483,0.010716,93355.0,93341.0,0.010718]
[1767739924168,0.02913068,93354.0,93341.0,0.010718]
[1767739924774,0.010716,93353.0,93341.0,0.010718]
[1767739925087,0.03984668,93353.0,93341.0,0.010718]
[1767739925669,0.12834184,93357.0,93341.0,0.010718]
[1767739925880,0.09112,93363.0,93341.0,0.10502925]
[1767739925881,0.02913068,93362.0,93341.0,0.10502925]
[1767739926080,0.02913068,93362.0,93343.0,0.010717]
[1767739926674,0.010716,93359.0,93345.0,0.010717]
[1767739927683,0.010716,93359.0,93347.0,0.12442107]
[1767739927878,0.010716,93359.0,93348.0,0.12442107]
[1767739928088,0.010715,93362.0,93348.0,0.12442107]
[1767739928377,0.010715,93365.0,93349.0,0.010717]
[1767739928582,0.03984568,93365.0,93349.0,0.010717]
[1767739928776,0.02913068,93364.0,93349.0,0.010717]
[1767739929174,0.09112,93366.0,93349.0,0.010717]
[1767739929175,0.02913068,93362.0,93349.0,0.010717]
[1767739929388,0.02913068,93360.0,93338.0,0.12442107]
[1767739929591,0.09921116,93363.0,93343.0,0.09431125]
[1767739929882,0.09921116,93363.0,93343.0,0.12442107]
[1767739930683,0.010715,93362.0,93348.0,0.09431125]
[1767739930884,0.010715,93362.0,93349.0,0.010717]
[1767739931086,0.010715,93365.0,93352.0,0.09431125]
[1767739931285,0.010715,93365.0,93354.0,0.09431125]
[1767739931586,0.09112,93366.0,93354.0,0.09431125]
[1767739933083,0.101835,93366.0,93354.0,0.09431125]
[1767739933386,0.09112,93366.0,93354.0,0.10502725]
[1767739933687,0.09112,93366.0,93355.0,0.12442107]
[1767739933885,0.010714,93372.0,93361.0,0.12442107]
[1767739934091,0.010714,93372.0,93363.0,0.09431125]
[1767739934589,0.09112,93377.0,93366.0,0.12442107]
[1767739934791,0.010714,93374.0,93366.0,0.12442107]
[1767739935083,0.010714,93374.0,93366.0,0.09431125]
[1767739936080,0.101834,93377.0,93366.0,0.09431125]
[1767739937487,0.101834,93377.0,93366.0,0.12442107]
[1767739938184,0.09112,93377.0,93366.0,0.12442107]
[1767739938390,0.010714,93376.0,93366.0,0.12442107]
[1767739938783,0.01829115,93385.0,93366.0,0.12442107]
[1767739938978,0.010713,93382.0,93366.0,0.13513607]
[1767739940202,0.01813531,93385.0,93374.0,0.09431125]
[1767739940400,0.101833,93386.0,93370.0,0.04082382]
[1767739940800,0.101833,93386.0,93370.0,0.010714]
[1767739940989,0.03127227,93389.0,93368.0,0.09431125]
[1767739941503,0.02913068,93388.0,93368.0,0.09431125]
[1767739942007,0.02045413,93389.0,93373.0,0.12442107]
[1767739942204,0.02045413,93389.0,93374.0,0.010714]
[1767739942401,0.02045413,93389.0,93378.0,0.010713]
[1767739943101,0.02045413,93389.0,93380.0,0.010713]
[1767739943607,0.02045413,93389.0,93382.0,0.010713]
[1767739945600,0.02045413,93389.0,93379.0,0.13513407]
[1767739946110,0.010711,93400.0,93385.0,0.12442107]
[1767739946508,0.010711,93400.0,93385.0,0.09431125]
[1767739947005,0.010711,93400.0,93383.0,0.010713]
[1767739947608,0.010711,93400.0,93379.0,0.09112]
[1767739947609,0.01708134,93400.0,93386.0,0.12442107]
[1767739947810,0.010711,93403.0,93386.0,0.09431125]
[1767739948108,0.02913068,93458.0,93389.0,0.03010982]
[1767739948296,0.02913068,93458.0,93410.0,0.03010982]
[1767739948297,0.02913068,93434.0,93410.0,0.03010982]
[1767739948502,0.12834184,93426.0,93405.0,0.01071]
[1767739948704,0.12834184,93418.0,93401.0,0.010711]
[1767739948903,0.010707,93438.0,93401.0,0.010711]
[1767739948904,0.09921116,93416.0,93401.0,0.010711]